bitfinex/quotes_SOLUSD_20250415
["timestamp","ask_amount","ask_price","bid_price","bid_amount"]
[1744686255764,11.37794092,129.33,129.31,0.063]
[1744686256265,11.37794092,129.32,129.31,0.063]
[1744686256559,92.17794092,129.34,129.31,0.063]
[1744686257049,7.7321,129.33,129.31,18.71264886]
[1744686257861,7.7321,129.33,129.31,0.063]
[1744686257862,19.11004092,129.33,129.31,0.063]
[1744686258164,11.37794092,129.32,129.31,0.063]
[1744686259046,19.11064092,129.32,129.31,0.063]
[1744686262964,20.63814092,129.32,129.31,0.0001]
[1744686264063,51.34788184,129.32,129.28,0.063]
[1744686264251,11.37794092,129.29,129.28,0.063]
[1744686265265,19.11244092,129.29,129.28,0.063]
[1744686275384,7.7345,129.29,129.28,0.063]
[1744686275592,19.11244092,129.29,129.28,0.063]
[1744686276588,7.7345,129.29,129.28,0.063]
[1744686276788,19.11244092,129.29,129.28,0.063]
[1744686277985,7.7345,129.29,129.28,0.063]
[1744686278286,7.7333,129.31,129.28,0.063]
[1744686278458,11.37794092,129.3,129.28,0.063]
[1744686279580,11.37794092,129.29,129.28,0.063]
[1744686280078,19.11244092,129.29,129.28,0.063]
[1744686280783,19.11244092,129.29,129.28,0.0001]
[1744686285290,7.7345,129.29,129.28,0.0001]
[1744686285459,19.11244092,129.29,129.28,0.0001]
[1744686289491,7.7345,129.29,129.28,0.0001]
[1744686290173,19.11244092,129.29,129.28,0.0001]
[1744686290584,7.7345,129.29,129.28,0.0001]
[1744686293503,19.11244092,129.29,129.28,0.0001]
[1744686293991,7.7345,129.29,129.28,0.0001]
[1744686295679,19.11244092,129.29,129.28,0.0001]
[1744686300499,7.7345,129.29,129.28,0.0001]
[1744686301006,19.11244092,129.29,129.28,0.0001]
[1744686301193,15.01636159,129.29,129.28,0.0001]
[1744686301376,7.7345,129.29,129.28,0.0001]
[1744686302075,7.28186159,129.32,129.28,0.42658471]
[1744686302284,15.01336159,129.34,129.3,18.64964886]
[1744686303796,0.03,129.35,129.33,18.64964886]
[1744686303984,0.03,129.35,129.34,26.50015673]
[1744686304180,0.03,129.35,129.34,34.28455673]
[1744686304477,0.03,129.35,129.34,27.00269514]
[1744686304905,7.7609,129.35,129.34,26.86053357]
[1744686305087,34.37016159,129.35,129.31,6.266]
[1744686305294,7.28186159,129.32,129.28,0.0001]
[1744686305612,7.28186159,129.29,129.28,0.0001]
[1744686305810,7.7345,129.29,129.28,18.64974886]
[1744686309315,11.37048839,129.33,129.29,0.42648471]
[1744686309610,2.86139509,129.32,129.3,18.64964886]
[1744686309781,14.23188348,129.32,129.3,18.64964886]
[1744686310096,11.37048839,129.32,129.29,0.42648471]
[1744686310591,11.37048839,129.3,129.28,18.64974886]
[1744686311702,19.10378839,129.31,129.28,18.64974886]
[1744686312219,2.86223433,129.3,129.29,0.42648471]
[1744686313214,7.7342,129.3,129.28,18.64974886]
[1744686313714,7.7335,129.31,129.29,0.42648471]
[1744686314618,7.7329,129.32,129.29,0.56864628]
[1744686314822,0.03,129.35,129.33,0.28432314]
[1744686314993,0.03,129.35,129.34,11.7969731]
[1744686315607,0.03,129.35,129.34,30.58878353]
[1744686316109,0.03,129.35,129.32,28.74238839]
[1744686316311,11.40048839,129.35,129.33,18.64964886]
[1744686316690,0.03,129.35,129.33,18.64964886]
[1744686317000,0.03,129.35,129.34,11.37048839]
[1744686317319,0.03,129.35,129.34,11.93913467]
[1744686318400,0.03,129.35,129.34,30.58878353]
[1744686322437,0.03,129.35,129.34,38.32028353]
[1744686322716,0.03,129.35,129.34,39.93168353]
[1744686322900,0.03,129.35,129.34,32.20018353]
[1744686323394,0.03,129.35,129.34,20.82969514]
[1744686323712,0.03,129.35,129.34,39.93168353]
[1744686324917,0.03,129.37,129.36,44.933972]
[1744686325126,0.03,129.37,129.36,48.29297192]
[1744686325499,0.03,129.37,129.36,56.02327192]
[1744686327419,0.03,129.37,129.36,67.06327192]
[1744686327922,0.03,129.37,129.36,36.63816039]
[1744686328216,0.03,129.37,129.36,41.34446039]
[1744686328401,0.03,129.37,129.36,18.933972]
[1744686328603,11.40048839,129.37,129.33,11.04]
[1744686328802,11.37048839,129.36,129.33,11.04]
[1744686329003,11.37048839,129.36,129.34,18.64964886]
[1744686329198,7.27061539,129.36,129.34,18.64964886]
[1744686329400,15.03091539,129.37,129.34,18.64964886]
[1744686329615,7.7603,129.37,129.34,18.64964886]
[1744686329822,15.03091539,129.37,129.34,18.64964886]
[1744686330002,7.7603,129.37,129.34,18.64964886]
[1744686330202,7.7603,129.37,129.34,25.92026425]
[1744686330402,7.7603,129.37,129.34,18.64964886]
[1744686331204,19.11841685,129.37,129.34,18.64964886]
[1744686332013,11.35811685,129.36,129.34,18.64964886]
[1744686333218,7.7309,129.35,129.34,18.64964886]
[1744686334319,7.7309,129.35,129.33,11.04]
[1744686335017,7.7305,129.36,129.34,18.64964886]
[1744686335412,11.38811685,129.37,129.34,18.64964886]
[1744686337422,0.03,129.37,129.34,18.64964886]
[1744686337618,11.35811685,129.36,129.33,11.04]
[1744686338723,7.7309,129.35,129.33,11.04]
[1744686339026,19.08901685,129.35,129.33,11.04]
[1744686339621,11.35811685,129.34,129.3,19.07613357]
[1744686340129,11.35811685,129.34,129.3,18.933972]
[1744686340718,7.7321,129.33,129.3,18.933972]
[1744686342313,7.7321,129.33,129.3,18.79181043]
[1744686342513,11.35811685,129.31,129.29,11.04]
[1744686342913,7.7339,129.3,129.29,11.04]
[1744686343632,19.09201685,129.3,129.29,11.04]
[1744686343934,7.7339,129.3,129.29,11.04]
[1744686345119,7.7327,129.32,129.29,11.04]
[1744686346028,19.09081685,129.32,129.29,11.04]
[1744686346537,11.35811685,129.3,129.29,11.04]
[1744686346823,11.35811685,129.31,129.29,11.04]
[1744686347029,7.7339,129.3,129.29,11.04]
[1744686348130,19.3294,129.34,129.29,22.39811685]
[1744686348338,7.7321,129.33,129.3,11.78460156]
[1744686350935,7.7321,129.33,129.29,22.39811685]
[1744686351132,19.09021685,129.33,129.3,18.64964886]
[1744686351325,11.35811685,129.31,129.29,11.04]
[1744686352434,7.7339,129.3,129.29,11.04]
[1744686356324,19.09201685,129.3,129.29,11.04]
[1744686356732,7.7339,129.3,129.29,11.04]
[1744686357438,7.7327,129.32,129.3,18.64964886]
[1744686357835,19.09081685,129.32,129.29,11.04]
[1744686358011,11.35811685,129.31,129.29,11.04]
[1744686358218,11.35811685,129.3,129.28,0.0001]
[1744686358737,11.35811685,129.31,129.28,0.0001]
[1744686358950,11.35811685,129.31,129.28,0.42658471]
[1744686359121,7.7327,129.32,129.28,11.78470156]
[1744686359523,19.09081685,129.32,129.28,11.78470156]
[1744686359723,7.7327,129.32,129.28,11.78470156]
[1744686360849,7.7327,129.32,129.3,18.64964886]
[1744686362447,30.68451685,129.36,129.32,18.64964886]
[1744686362655,7.7309,129.35,129.34,18.64964886]
[1744686362963,7.7306,129.36,129.34,18.64964886]
[1744686365129,7.76,129.37,129.35,11.35811685]
[1744686366151,0.03,129.37,129.36,18.64964886]
[1744686366344,0.03,129.37,129.36,38.30671199]
[1744686367435,0.03,129.4,129.39,44.79181043]
[1744686367639,0.03,129.4,129.39,56.57641199]
[1744686368231,0.03,129.42,129.41,25.298472]
[1744686368545,0.03,129.42,129.41,59.33902884]
[1744686369636,0.03,129.43,129.42,19.21829514]
[1744686369834,0.03,129.43,129.42,41.93452884]
[1744686370339,0.03,129.43,129.42,49.66122884]
[1744686371146,0.03,129.43,129.42,41.93452884]
[1744686371337,0.03,129.43,129.42,30.57641199]
[1744686371929,0.03,129.43,129.42,30.43425042]
[1744686372230,0.03,129.43,129.42,30.57641199]
[1744686372647,0.03,129.43,129.42,30.43425042]
[1744686372854,0.03,129.43,129.39,11.35811685]
[1744686373152,0.03,129.43,129.4,29.83181043]
[1744686373656,0.03,129.43,129.42,41.93452884]
[1744686374150,0.03,129.43,129.42,124.93452884]
[1744686374727,0.03,129.43,129.42,132.66122884]
[1744686375757,0.03,129.47,129.46,45.07613357]
[1744686375927,0.03,129.47,129.46,67.61641199]
[1744686378634,0.03,129.47,129.46,75.34071199]
[1744686379244,0.03,129.49,129.47,0.28432314]
[1744686379557,0.03,129.49,129.48,48.48242884]
[1744686379754,0.03,129.53,129.52,44.933972]
[1744686379930,0.03,129.53,129.52,56.57641199]
[1744686380252,0.03,129.53,129.52,67.61641199]
[1744686380643,0.03,129.53,129.52,78.97452884]
[1744686381036,0.03,129.53,129.52,67.61641199]
[1744686381343,0.03,129.54,129.53,25.76619514]
[1744686381566,0.03,129.54,129.53,61.97748596]
[1744686381858,0.03,129.54,129.53,144.97748596]
[1744686382425,0.03,129.54,129.53,134.59204055]
[1744686382842,0.03,129.54,129.53,152.69768596]
[1744686383655,0.03,129.54,129.53,43.87184055]
[1744686383830,0.03,129.54,129.53,51.30771741]
[1744686384030,0.03,129.54,129.53,51.59204055]
[1744686385357,0.03,129.54,129.53,43.87184055]
[1744686385741,0.03,129.54,129.53,18.79181043]
[1744686385943,18.13564541,129.54,129.5,11.02]
[1744686386152,18.10564541,129.51,129.5,11.02]
[1744686386447,18.10564541,129.51,129.5,29.66964886]
[1744686386829,18.10564541,129.51,129.5,11.02]
[1744686387056,25.82704541,129.51,129.5,11.02]
[1744686387361,7.7214,129.51,129.48,36.75529427]
[1744686387541,7.7214,129.51,129.48,18.10564541]
[1744686388059,7.7214,129.51,129.48,0.28432314]
[1744686388252,7.7214,129.51,129.48,0.14216157]
[1744686388550,7.7214,129.51,129.48,18.24780698]
[1744686388753,7.7202,129.53,129.5,18.79181043]
[1744686388931,0.03,129.54,129.51,18.79181043]
[1744686389130,18.10564541,129.52,129.49,0.28432314]
[1744686389741,18.10564541,129.53,129.49,0.28432314]
[1744686390141,18.10564541,129.53,129.5,18.64964886]
[1744686390857,18.10564541,129.53,129.49,0.28432314]
[1744686391058,7.7208,129.52,129.49,0.28432314]
[1744686391361,25.82644541,129.52,129.49,0.28432314]
[1744686393060,7.7226,129.49,129.47,18.64964886]
[1744686395157,25.82824541,129.49,129.47,18.64964886]
[1744686395759,7.7226,129.49,129.47,18.64964886]
[1744686396748,45.13474541,129.49,129.46,11.02]
[1744686400569,27.0291,129.49,129.46,11.02]
[1744686401370,27.0291,129.49,129.46,29.12564541]
[1744686401867,19.3065,129.49,129.46,11.02]
[1744686402744,18.10564541,129.47,129.46,11.02]
[1744686403062,18.10564541,129.47,129.43,18.64964886]
[1744686403260,11.34350703,129.46,129.43,18.64964886]
[1744686403687,11.34350703,129.46,129.42,251.84]
[1744686403966,27.0373,129.45,129.42,11.02]
[1744686404282,39.91050703,129.45,129.42,11.02]
[1744686405349,11.34350703,129.44,129.42,11.02]
[1744686405651,39.91050703,129.45,129.42,11.02]
[1744686406369,28.567,129.45,129.42,11.02]
[1744686406581,27.0373,129.45,129.42,11.02]
[1744686406869,8.0789,129.53,129.44,11.62783017]
[1744686407051,12.90810703,129.53,129.49,18.64964886]
[1744686407771,37.34350703,129.52,129.48,11.34350703]
[1744686408071,7.7214,129.51,129.48,18.64964886]
[1744686409171,11.34350703,129.49,129.47,11.02]
[1744686409378,11.34350703,129.48,129.44,11.34350703]
[1744686409570,11.34350703,129.48,129.44,18.64964886]
[1744686409776,11.34350703,129.48,129.44,29.99315589]
[1744686410254,7.7237,129.47,129.44,29.99315589]
[1744686411059,7.7237,129.47,129.45,11.34350703]
[1744686411264,18.13598902,129.48,129.43,11.02]
[1744686411601,18.13598902,129.48,129.44,18.79181043]
[1744686411779,18.13598902,129.48,129.44,36.92779945]
[1744686412075,18.13598902,129.49,129.44,36.92779945]
[1744686412278,7.7232,129.48,129.44,36.92779945]
[1744686412663,25.85918902,129.48,129.44,36.92779945]
[1744686412861,18.13598902,129.47,129.43,11.02]
[1744686413066,27.0312,129.48,129.43,11.02]
[1744686413067,18.13598902,129.46,129.43,11.02]
[1744686413256,18.13598902,129.45,129.42,0.063]
[1744686413450,18.13598902,129.44,129.42,0.063]
[1744686413663,18.13598902,129.45,129.42,0.063]
[1744686414280,7.7255,129.44,129.42,0.063]
[1744686416458,7.7243,129.46,129.42,18.62547373]
[1744686416656,25.86028902,129.46,129.42,18.62547373]
[1744686416882,25.86028902,129.46,129.42,0.48948471]
[1744686417275,18.13598902,129.45,129.42,0.063]
[1744686418179,18.13598902,129.44,129.42,0.063]
[1744686418378,7.7261,129.43,129.42,0.063]
[1744686420575,7.7255,129.44,129.42,0.063]
[1744686420784,7.7253,129.45,129.43,18.13598902]
[1744686420994,7.7253,129.45,129.42,18.19898902]
[1744686421164,7.7226,129.49,129.44,36.78563788]
[1744686421363,25.85858902,129.49,129.44,36.78563788]
[1744686421679,18.13598902,129.48,129.44,36.78563788]
[1744686421880,18.13598902,129.47,129.44,18.64964886]
[1744686422897,7.7243,129.46,129.44,18.64964886]
[1744686424369,45.17118902,129.46,129.43,18.64964886]
[1744686424759,18.13598902,129.44,129.42,0.063]
[1744686424961,51.86208902,129.43,129.42,0.0001]
[1744686425172,25.86208902,129.43,129.42,0.0001]
[1744686425382,7.7261,129.43,129.42,0.0001]
[1744686425577,7.726,129.44,129.42,18.64974886]
[1744686425769,7.726,129.44,129.42,0.0001]
[1744686425975,18.13598902,129.43,129.42,0.0001]
[1744686426260,25.86198902,129.44,129.42,0.0001]
[1744686428187,7.726,129.44,129.42,0.0001]
[1744686428396,25.86198902,129.44,129.42,0.0001]
[1744686430671,25.85968902,129.47,129.42,36.78573788]
[1744686430880,18.13598902,129.46,129.42,0.0001]
[1744686431183,18.13598902,129.45,129.42,0.0001]
[1744686431700,7.7255,129.44,129.42,0.0001]
[1744686433198,25.86148902,129.44,129.42,0.0001]
[1744686433569,18.13598902,129.43,129.42,0.0001]
[1744686434594,21.01188936,129.43,129.42,0.0001]
[1744686435397,2.87590034,129.43,129.42,0.0001]
[1744686435704,10.60200034,129.43,129.42,0.0001]
[1744686435998,28.73798936,129.43,129.42,0.0001]
[1744686437101,10.60200034,129.43,129.42,0.0001]
[1744686437306,28.73798936,129.43,129.42,0.0001]
[1744686440097,10.60200034,129.43,129.42,0.0001]
[1744686441007,2.87590034,129.43,129.42,36.78573788]
[1744686441300,10.60200034,129.43,129.42,18.64974886]
[1744686441628,7.7261,129.43,129.42,18.64974886]
[1744686442101,7.7249,129.45,129.42,18.64974886]
[1744686442479,7.7249,129.45,129.42,36.78573788]
[1744686444303,27.0364,129.46,129.42,36.78573788]
[1744686446206,101.7569,129.48,129.43,37.21212259]
[1744686446409,7.7214,129.51,129.47,36.78563788]
[1744686446636,18.13598902,129.49,129.45,11.02]
[1744686446909,21.01548669,129.48,129.45,11.02]
[1744686447090,2.87949767,129.48,129.45,11.02]
[1744686447789,2.87949767,129.47,129.45,11.02]
[1744686448611,7.7243,129.46,129.45,11.02]
[1744686449806,7.7232,129.48,129.45,22.35764679]
[1744686450321,27.0312,129.48,129.45,22.35764679]
[1744686451622,11.33764679,129.5,129.45,22.35764679]
[1744686451811,7.7226,129.49,129.46,29.98729565]
[1744686452791,27.0291,129.49,129.46,29.98729565]
[1744686454233,38.36674679,129.49,129.45,11.02]
[1744686454430,2.88071285,129.48,129.45,11.02]
[1744686455540,2.88071285,129.47,129.45,11.02]
[1744686456227,38.36674679,129.49,129.45,11.02]
[1744686457017,2.88111383,129.48,129.45,11.02]
[1744686457633,2.88111383,129.47,129.45,11.02]
[1744686458536,7.7243,129.46,129.45,11.02]
[1744686459034,7.7243,129.46,129.44,29.98729565]
[1744686459736,7.724,129.47,129.44,29.98729565]
[1744686459917,7.724,129.47,129.45,11.33764679]
[1744686461331,11.33764679,129.48,129.44,29.98729565]
[1744686461649,38.36764679,129.49,129.44,29.98729565]
[1744686461942,27.03,129.49,129.45,11.33764679]
[1744686462139,38.36764679,129.49,129.44,29.98729565]
[1744686462635,2.88016183,129.48,129.44,29.98729565]
[1744686463038,2.88016183,129.47,129.44,29.98729565]
[1744686464151,7.7243,129.46,129.44,29.98729565]
[1744686466037,7.7233,129.48,129.46,18.64964886]
[1744686466214,0.03,129.52,129.47,30.41378036]
[1744686466419,0.03,129.52,129.49,11.33764679]
[1744686466659,0.03,129.52,129.51,11.33764679]
[1744686466828,0.03,129.52,129.51,30.41378036]
[1744686467339,0.03,129.52,129.51,41.43378036]
[1744686468349,0.03,129.52,129.51,50.80974193]
[1744686476460,0.03,129.52,129.51,31.75069514]
[1744686476638,0.03,129.52,129.51,42.80401879]
[1744686476833,0.03,129.52,129.51,50.52541879]
[1744686477060,0.03,129.52,129.51,50.80974193]
[1744686481268,0.03,129.54,129.53,45.21829514]
[1744686481445,0.03,129.56,129.55,18.933972]
[1744686481659,0.03,129.56,129.55,56.55594193]
[1744686483273,0.03,129.56,129.55,64.27494193]
[1744686484079,0.03,129.56,129.55,56.55594193]
[1744686484373,0.03,129.56,129.55,64.27494193]
[1744686485074,0.03,129.56,129.55,56.55594193]
[1744686485379,0.03,129.56,129.55,64.27494193]
[1744686485563,0.03,129.56,129.55,56.55594193]
[1744686485746,0.03,129.56,129.55,56.41378036]
[1744686486771,0.03,129.56,129.55,64.27494193]
[1744686489671,0.03,129.56,129.55,56.55594193]
[1744686490766,0.03,129.56,129.55,56.27161879]
[1744686491072,0.03,129.56,129.55,56.41378036]
[1744686491454,0.03,129.56,129.55,67.55594193]
[1744686492776,0.03,129.56,129.55,75.27494193]
[1744686493577,0.03,129.56,129.55,67.55594193]
[1744686496875,0.03,129.56,129.55,75.27494193]
[1744686497171,0.03,129.56,129.55,158.27494193]
[1744686497386,0.03,129.56,129.55,150.55594193]
[1744686497562,0.03,129.56,129.55,158.27494193]
[1744686499185,0.03,129.56,129.55,154.17913104]
[1744686505278,0.03,129.56,129.55,146.46013104]
[1744686506883,0.03,129.56,129.55,63.46013104]
[1744686510269,7.2718359,129.56,129.52,18.79181043]
[1744686510472,7.2418359,129.55,129.52,11.14216157]
[1744686510984,7.7196,129.54,129.52,11.0]
[1744686511581,7.7487,129.56,129.53,26.03364633]
[1744686511787,7.7487,129.56,129.54,7.2418359]
[1744686512085,7.7487,129.56,129.54,0.28432314]
[1744686514789,0.03,129.56,129.54,0.28432314]
[1744686518096,0.03,129.56,129.53,0.14216157]
[1744686518390,7.2418359,129.55,129.52,29.64964886]
[1744686518699,7.2718359,129.56,129.52,29.64964886]
[1744686519897,7.719,129.55,129.52,29.64964886]
[1744686520191,7.2418359,129.54,129.52,11.0]
[1744686520508,14.9608359,129.55,129.52,11.0]
[1744686521580,7.2718359,129.56,129.52,11.0]
[1744686522700,0.03,129.56,129.54,18.64964886]
[1744686523000,0.03,129.56,129.54,25.89148476]
[1744686525386,0.03,129.56,129.55,26.31796947]
[1744686525585,0.03,129.56,129.55,26.46013104]
[1744686526486,0.03,129.56,129.54,7.2418359]
[1744686528206,0.03,129.56,129.55,7.66832061]
[1744686530500,0.03,129.56,129.55,0.42648471]
[1744686531305,0.03,129.56,129.54,0.42648471]
[1744686532001,0.03,129.56,129.53,25.89148476]
[1744686532202,7.2718359,129.56,129.53,18.64964886]
[1744686532502,7.2718359,129.56,129.52,11.28432314]
[1744686532685,7.719,129.55,129.52,11.28432314]
[1744686534008,7.719,129.55,129.54,7.2418359]
[1744686535107,0.03,129.56,129.52,11.0]
[1744686535399,7.2418359,129.54,129.5,37.03364633]
[1744686535603,7.2718359,129.56,129.51,7.2418359]
[1744686536207,7.2418359,129.54,129.5,11.0]
[1744686536582,8.7561359,129.55,129.5,18.2418359]
[1744686537200,7.7196,129.54,129.5,18.2418359]
[1744686538183,7.2418359,129.53,129.5,11.0]
[1744686540206,7.7208,129.52,129.5,11.0]
[1744686541995,14.9626359,129.52,129.5,11.0]
[1744686542388,7.7208,129.52,129.5,11.0]
[1744686542590,7.7486,129.56,129.52,18.64964886]
[1744686542894,7.7486,129.56,129.54,7.2418359]
[1744686543111,0.03,129.56,129.54,7.2418359]
[1744686543314,7.7484,129.56,129.54,7.2418359]
[1744686544109,0.03,129.56,129.54,7.2418359]
[1744686544805,7.2718359,129.56,129.51,18.64964886]
[1744686544991,7.2718359,129.56,129.51,25.89148476]
[1744686546099,7.719,129.55,129.52,7.2418359]
[1744686546618,7.719,129.55,129.51,25.89148476]
[1744686546796,14.9608359,129.55,129.5,101.66832061]
[1744686546996,34.2583359,129.55,129.5,101.66832061]
[1744686548114,34.2583359,129.55,129.5,18.66832061]
[1744686548612,7.719,129.55,129.51,7.2418359]
[1744686549013,7.719,129.55,129.52,26.31796947]
[1744686549330,7.7486,129.56,129.54,7.2418359]
[1744686549521,0.03,129.56,129.55,19.07613357]
[1744686549817,0.03,129.56,129.55,18.66832061]
[1744686550520,0.03,129.56,129.55,45.17913104]
[1744686551288,0.03,129.56,129.55,49.25150157]
[1744686554237,0.03,129.58,129.57,45.21829514]
[1744686554525,0.03,129.58,129.57,139.53250157]
[1744686555896,0.03,129.58,129.57,147.25030157]
[1744686556112,0.03,129.58,129.57,68.07817988]
[1744686557020,0.03,129.58,129.57,64.25030157]
[1744686559623,0.03,129.58,129.57,147.25030157]
[1744686560123,0.03,129.59,129.58,19.21829514]
[1744686560317,0.03,129.59,129.58,113.53250157]
[1744686561319,0.03,129.59,129.58,121.24970157]
[1744686562518,0.03,129.59,129.58,30.53250157]
[1744686562697,0.03,129.59,129.58,37.96537843]
[1744686563025,0.03,129.6,129.59,25.85429514]
[1744686563200,0.03,129.6,129.59,37.16850157]
[1744686563406,0.03,129.6,129.59,48.482708]
[1744686563831,0.03,129.6,129.59,49.482708]
[1744686564329,0.03,129.62,129.61,46.76349514]
[1744686564504,0.03,129.62,129.61,159.77310157]
[1744686565605,0.03,129.62,129.61,158.22790157]
[1744686572529,0.03,129.62,129.61,74.94357843]
[1744686573016,0.03,129.62,129.61,75.22790157]
[1744686573516,0.03,129.62,129.61,18.933972]
[1744686573721,0.03,129.62,129.6,10.98]
[1744686574018,11.31420643,129.61,129.6,10.98]
[1744686574218,11.31420643,129.61,129.57,240.72216157]
[1744686574543,11.31420643,129.59,129.57,0.14216157]
[1744686574850,11.31420643,129.59,129.56,10.98]
[1744686575137,11.31420643,129.57,129.56,10.98]
[1744686575325,17.48120643,129.6,129.56,10.98]
[1744686575326,11.31420643,129.58,129.56,10.98]
[1744686575528,19.03200643,129.57,129.56,10.98]
[1744686575914,20.65340643,129.57,129.53,0.14216157]
[1744686576117,11.31420643,129.54,129.52,10.98]
[1744686576614,11.31420643,129.53,129.52,10.98]
[1744686576952,17.85240643,129.53,129.5,0.063]
[1744686577249,11.31420643,129.51,129.5,0.063]
[1744686577541,19.03560643,129.51,129.5,0.063]
[1744686578241,7.7209,129.52,129.5,0.063]
[1744686579840,11.31420643,129.56,129.52,19.07613357]
[1744686580140,7.7184,129.56,129.53,11.31420643]
[1744686580324,7.7184,129.56,129.53,22.29420643]
[1744686580733,7.7184,129.56,129.53,10.98]
[1744686581236,26.82900643,129.57,129.53,10.98]
[1744686581847,26.82900643,129.57,129.5,0.063]
[1744686581848,11.31420643,129.54,129.5,0.063]
[1744686582051,11.31420643,129.52,129.5,0.063]
[1744686582434,11.31420643,129.51,129.5,0.063]
[1744686583754,19.03560643,129.51,129.5,0.063]
[1744686585347,25.85439349,129.51,129.5,0.063]
[1744686585856,7.7202,129.53,129.5,0.063]
[1744686586051,25.85319349,129.53,129.5,19.13913357]
[1744686586241,19.2978,129.55,129.5,37.27212706]
[1744686586242,7.7198,129.54,129.5,37.27212706]
[1744686586552,25.85279349,129.54,129.5,19.13913357]
[1744686587954,25.85279349,129.54,129.5,37.27212706]
[1744686588139,7.7192,129.55,129.51,18.13299349]
[1744686588653,7.7192,129.55,129.52,18.5594782]
[1744686588839,7.7186,129.56,129.52,18.5594782]
[1744686590759,7.7181,129.57,129.54,18.5594782]
[1744686591056,25.85109349,129.57,129.54,10.98]
[1744686591352,18.13299349,129.56,129.54,10.98]
[1744686591853,18.13299349,129.55,129.5,0.063]
[1744686592031,18.13299349,129.53,129.5,0.063]
[1744686592331,25.85299349,129.54,129.5,18.48031663]
[1744686592654,7.72,129.54,129.5,18.48031663]
[1744686594146,7.7192,129.55,129.52,0.28432314]
[1744686594333,7.7192,129.55,129.52,18.41731663]
[1744686594535,7.7192,129.55,129.52,0.28432314]
[1744686595132,18.13299349,129.54,129.5,18.19599349]
[1744686595334,18.13299349,129.54,129.5,0.063]
[1744686595651,18.13299349,129.51,129.5,0.063]
[1744686596238,25.85439349,129.51,129.5,0.063]
[1744686602759,18.13299349,129.57,129.51,18.79181043]
[1744686602964,45.14369349,129.58,129.53,18.13299349]
[1744686603163,18.13299349,129.57,129.52,18.41731663]
[1744686603371,18.13299349,129.54,129.51,10.98]
[1744686603573,18.13299349,129.52,129.5,0.063]
[1744686603770,18.13299349,129.51,129.5,0.063]
[1744686604763,27.45249349,129.51,129.5,0.063]
[1744686605141,25.85439349,129.51,129.5,0.063]
[1744686606946,7.721,129.52,129.5,0.063]
[1744686609369,25.85399349,129.52,129.5,0.063]
[1744686609571,18.13299349,129.51,129.5,0.063]
[1744686610776,25.85439349,129.51,129.5,0.063]
[1744686611079,18.13299349,129.51,129.5,0.063]
[1744686611656,18.13299349,129.52,129.5,0.063]
[1744686612470,18.13299349,129.51,129.5,0.063]
[1744686613282,18.13299349,129.52,129.5,0.063]
[1744686613783,18.13299349,129.51,129.5,0.063]
[1744686615382,25.85439349,129.51,129.5,0.063]
[1744686615557,7.7214,129.51,129.5,0.063]
[1744686615966,25.85439349,129.51,129.5,0.063]
[1744686616885,7.7214,129.51,129.5,0.063]
[1744686620572,19.05260679,129.51,129.5,0.063]
[1744686621087,26.0,129.49,129.48,0.063]
[1744686621380,45.05380679,129.49,129.48,0.063]
[1744686622987,66.01990679,129.49,129.45,0.063]
[1744686623284,11.33120679,129.47,129.45,0.063]
[1744686625387,7.7243,129.46,129.45,0.063]
[1744686626587,7.7233,129.48,129.45,0.063]
[1744686626889,19.3038,129.51,129.47,11.33120679]
[1744686626890,30.63500679,129.51,129.47,11.33120679]
[1744686627186,30.63500679,129.51,129.46,11.61552993]
[1744686627485,11.33120679,129.49,129.45,0.063]
[1744686627685,11.33120679,129.48,129.45,0.063]
[1744686628468,11.33120679,129.47,129.45,0.063]
[1744686628859,11.33120679,129.46,129.45,0.063]
[1744686630195,11.33120679,129.46,129.44,0.063]
[1744686630490,7.7255,129.44,129.43,0.0001]